[Event "Menorca Open-A 2022"]
[Site "Menorca"]
[Date "2022.04.21"]
[Round "2.5"]
[White "Dubkov, Andrej"]
[Black "Gukesh D"]
[Result "0-1"]
[ECO "D38"]
[WhiteElo "2332"]
[BlackElo "2614"]
[Annotator "TA"]
[PlyCount "62"]
[EventDate "2022.04.20"]
[EventType "swiss"]
[EventCountry "ESP"]
[SourceTitle "playchess.com"]
[Source "ChessBase"]
[SourceQuality "1"]
[TimeControl "5400+30"]

{[%evp 15,62,17,11,16,20,14,27,22,32,36,27,32,37,27,29,29,25,27,32,22,107,101,113,0,0,0,-2,0,-2,-155,-147,-149,-140,-137,-147,-129,-123,-260,-257,-427,-416,-710,-704,-976,-944,-29986,-29987,-29988,-29988]} 1. d4 {[%emt 0:00:05]} d5 {[%emt 0:01:42]} 2. c4 {[%emt 0:00:13]} e6 {[%emt 0:00:07]} 3. Nf3 {[%emt 0:01:37]} Nf6 {[%emt 0:01:12]} 4. Nc3 {[%emt 0:00:11]} Bb4 {[%emt 0:00:36]} 5. Bg5 {[%emt 0:00:59]} Nbd7 {[%emt 0:00:50]} 6. e3 {[%emt 0:01:15]} c5 {[%emt 0:02:17]} 7. cxd5 {[%emt 0:02:13]} exd5 {[%emt 0:00:07]} 8. dxc5 {[%emt 0:04:21]} Qa5 {[%emt 0:00:07] Hoping for ...Ne4.} 9. Nd2 {[%emt 0:05:27] D38: Queen's Gambit Declined: Ragozin Defence (4 Nf3 Bb4).} Bxc3 {[%emt 0:15:20]} (9... Qxc5 {seems wilder.} 10. Rc1 d4 11. Bxf6 Nxf6 12. exd4 Qxd4 13. Bb5+ Bd7) 10. bxc3 {[%emt 0:00:16]} Qxc3 {[%emt 0:02:07]} 11. Rc1 {[%emt 0:26:27] White has an edge.} Qa5 {[%emt 0:00:14]} 12. Bxf6 {[%emt 0:11:05]} Nxf6 {[%emt 0:00:18]} 13. Qc2 {[%emt 0:02:53] [#]} O-O $146 {[%emt 0:00:34]} ({Predecessor:} 13... Ne4 14. f3 Nxd2 15. Qxd2 Qxd2+ 16. Kxd2 Bd7 17. Rb1 O-O-O 18. Bb5 Kc7 19. a4 Bc6 {½-½ (28) Villalva,V (2206)-Arreguin Hernandez,A (1988) Merida 2005}) 14. Bd3 {[%emt 0:00:10]} d4 {[%emt 0:05:47]} 15. O-O {[%emt 0:07:57]} dxe3 {[%emt 0:18:59]} 16. fxe3 {[%emt 0:01:46][%cal Of1f6] Black must now prevent Rxf6!} Qc7 {[%emt 0:00:32]} 17. Ne4 $1 {[%emt 0:05:43]} Ng4 {[%emt 0:04:18]} (17... Nxe4 $11 {keeps the balance.} 18. Bxe4 h6) 18. Nd6 $16 {[%emt 0:00:07]} h6 {[%emt 0:00:49]} 19. Bc4 {[%emt 0:01:48]} (19. Qa4 $16 {And now Qe4 would win.} Ne5 20. Bc2) 19... Nxe3 $11 {[%emt 0:06:03]} 20. Rxf7 $1 {[%emt 0:16:45]} Rxf7 {[%emt 0:00:15] Really sharp!} 21. Bxf7+ {[%emt 0:00:26]} Qxf7 {[%emt 0:00:02]} 22. Qe4 {[%emt 0:00:14]} (22. Qd2 $1 $11 Qf4 23. Re1) 22... Qe6 $17 {[%emt 0:04:33]} 23. Qxe6+ {[%emt 0:00:08]} Bxe6 {[%emt 0:00:02]} 24. Re1 {[%emt 0:00:06] [#]} Bxa2 $1 {[%emt 0:00:12]} 25. Rxe3 {[%emt 0:00:14][%mdl 4096] Endgame [#] KRB-KRN} Bd5 {[%emt 0:00:29]} 26. Re7 {[%emt 0:00:33] This move loses the game for White.} (26. Ra3 $17 {was necessary.}) 26... a5 $19 {[%emt 0:01:38][%cal Ba7a5,Ba5a4,Ba4a3,Ba3a2][%mdl 32]} 27. Nf5 $2 {[%emt 0:07:32]} (27. Re5 Bc6 28. Re2) 27... a4 {[%emt 0:00:48]} 28. Rxg7+ {[%emt 0:00:06]} (28. Re5 $142 Bf7 29. Re1) 28... Kf8 {[%emt 0:00:51] Threatens to win with ...a3.} 29. Rh7 {[%emt 0:00:51]} a3 {[%emt 0:01:12] ( -> ...a2)} 30. Ne7 {[%emt 0:01:45] [#]} Ra6 $1 {[%emt 0:00:35]} 31. Nxd5 {[%emt 0:01:09]} (31. Ng6+ Rxg6) 31... a2 {[%emt 0:00:05] Weighted Error Value: White=0.73/Black=0.09 (flawless)} 0-1

[Event "Menorca Open-A 2022"]
[Site "Menorca"]
[Date "2022.04.21"]
[Round "2.6"]
[White "Adhiban, B.."]
[Black "Nandhidhaa, P V"]
[Result "1-0"]
[ECO "B30"]
[WhiteElo "2648"]
[BlackElo "2380"]
[Annotator "TA"]
[PlyCount "87"]
[EventDate "2022.04.20"]
[EventType "swiss"]
[EventCountry "ESP"]
[SourceTitle "playchess.com"]
[Source "ChessBase"]
[SourceQuality "1"]
[TimeControl "5400+30"]

{[%evp 12,87,32,10,39,4,14,10,13,9,28,12,32,-11,0,-8,-10,-17,66,66,58,49,50,49,35,-8,61,0,119,105,99,106,106,100,150,85,79,53,73,0,201,198,298,299,309,260,301,312,304,304,462,310,323,277,325,284,266,0,327,218,203,172,302,257,300,220,1010,986,1391,1391,1298,1289,29992,29990,29993,29994,29998,29999]} 1. e4 {[%emt 0:00:03]} c5 {[%emt 0:03:36]} 2. Nf3 {[%emt 0:00:14]} Nc6 {[%emt 0:00:08]} 3. Bb5 {[%emt 0:07:58]} e6 {[%emt 0:01:31]} 4. O-O {[%emt 0:07:02]} Nge7 {[%emt 0:01:54]} 5. Re1 {[%emt 0:04:58]} Nd4 {[%emt 0:03:19]} 6. Nxd4 {[%emt 0:03:33]} cxd4 {[%emt 0:00:11]} 7. c3 $1 {[%emt 0:00:03] 7.c3 is better than 7.d3.} Nc6 {[%emt 0:03:41] B30: Sicilian: 2...Nc6 3 Bb5, lines without ...g6.} (7... a6 $5 {[%cal Ra6b5]} 8. Be2 Nc6 $11) 8. b4 $5 {[%emt 0:09:45][%mdl 4] Leaves trodden paths.} Be7 {[%emt 0:05:58]} 9. Bf1 {[%emt 0:01:53]} a6 {[%emt 0:03:57] The position is equal.} 10. a4 {[%emt 0:03:17] [#]} d5 $146 {[%emt 0:06:28]} ({Predecessor:} 10... O-O 11. Na3 dxc3 12. dxc3 Bf6 13. b5 axb5 14. Nxb5 d5 15. Ba3 Be7 16. exd5 exd5 17. Bxe7 Nxe7 {1-0 (51) Vachier Lagrave,M (2784)-Carlsen,M (2862) chess24.com INT 2021}) 11. exd5 {[%emt 0:00:46]} Qxd5 {[%emt 0:01:24]} 12. c4 {[%emt 0:06:07]} Qd8 {[%emt 0:07:41]} 13. b5 {[%emt 0:00:02]} axb5 {[%emt 0:01:00]} 14. cxb5 {[%emt 0:00:04]} Nb4 {[%emt 0:01:40]} ({Better is} 14... Na5 $1 $11) 15. Na3 $14 {[%emt 0:09:18]} O-O {[%emt 0:03:30]} 16. Bb2 {[%emt 0:01:54]} b6 {[%emt 0:04:55]} 17. Nc4 {[%emt 0:17:18]} Bb7 {[%emt 0:01:52]} 18. Ra3 {[%emt 0:01:27]} Rc8 {[%emt 0:12:20]} (18... g6 $11) 19. Rg3 {[%emt 0:03:48]} (19. Rh3 $1 $14) 19... Rc5 {[%emt 0:03:20]} (19... g6 $11) 20. Ba3 $16 {[%emt 0:04:34]} (20. Qg4 $6 Rg5 21. Qf4 (21. Qxd4 Qxd4 22. Bxd4 Rxg3 $17) 21... Rxg3 22. Qxg3 Re8 $14) 20... Rf5 {[%emt 0:01:10]} 21. Bxb4 {[%emt 0:00:37]} (21. Qg4 $6 Rg5 22. Qd1 Rxg3 23. hxg3 Re8 $14) 21... Bxb4 {[%emt 0:00:41]} 22. Bd3 $40 {[%emt 0:00:07][%mdl 128] White has strong attack.} Rf4 {[%emt 0:06:35] [#]} (22... Bd5 $142) 23. Qb1 {[%emt 0:05:29]} (23. Qh5 Rh4 24. Qg5 (24. Qe5 g6 $17) 24... g6 $11) ({White should try} 23. Bxh7+ $1 {[%mdl 512]} Kxh7 24. Qb1+ g6 25. Qxb4) 23... Bc5 {[%emt 0:02:43]} 24. Bxh7+ {[%emt 0:00:06]} Kh8 {[%emt 0:00:05][%cal Od4d3] White must now prevent ...d3!} 25. Be4 {[%emt 0:00:34] &Bianco is more active.} (25. Ne5 $16) 25... Bxe4 $2 {[%emt 0:01:05]} (25... d3 $1 $11 26. Rh3+ Kg8 27. Bh7+ Kh8 28. Bf5+ (28. Bxd3+ Rh4 $11) 28... Kg8 29. Bh7+ Kh8 30. Bxd3+ Rh4 31. Rxh4+ (31. Be4 Rxh3 32. gxh3 Qh4 $11) 31... Qxh4) 26. Rxe4 $18 {[%emt 0:00:04]} Rxe4 {[%emt 0:00:07]} (26... Rf5 {was necessary.} 27. a5 Kg8) 27. Qxe4 {[%emt 0:00:09] White wants to mate with Rh3+.} Kg8 {[%emt 0:02:49]} 28. Qe5 {[%emt 0:00:45][%csl Gg3][%cal Re5g7]} f6 {[%emt 0:00:27]} 29. Qxe6+ {[%emt 0:00:05]} Rf7 {[%emt 0:00:06]} 30. Kf1 {[%emt 0:05:06]} Qa8 {[%emt 0:01:13]} (30... Qd7 $142 31. Qxd7 Rxd7) 31. Nb2 {[%emt 0:06:26]} Qa5 {[%emt 0:03:29]} 32. Rd3 {[%emt 0:00:09]} Qa7 {[%emt 0:00:49]} 33. Qe8+ {[%emt 0:01:00]} Rf8 {[%emt 0:00:27]} 34. Qe6+ {[%emt 0:00:03]} Rf7 $1 {[%emt 0:00:07]} 35. g3 {[%emt 0:02:06][%cal Bg2g3,Bg3g4][%mdl 32]} Qb7 {[%emt 0:03:16]} 36. Qc6 {[%emt 0:00:44] Against Qh1+} Qa7 {[%emt 0:00:10]} (36... Qxc6 {might work better.} 37. bxc6 Rc7) 37. Kg2 {[%emt 0:00:25]} Re7 {[%emt 0:00:29]} 38. Nc4 {[%emt 0:00:40]} Rc7 $2 {[%emt 0:01:48]} (38... Qxa4 39. Nxb6 Bxb6) 39. Qe8+ {[%emt 0:00:13]} Kh7 {[%emt 0:01:08]} 40. g4 {[%emt 0:00:14][%cal Rd3h3]} Qb7+ {[%emt 0:00:13]} 41. Kg1 {[%emt 0:00:05][%cal Rd3h3]} Rf7 {[%emt 0:00:11]} 42. Rh3+ {[%emt 0:00:20] White mates.} Kg6 {[%emt 0:00:05]} 43. Qe6 {[%emt 0:00:49][%csl Gg4][%cal Re6f5]} Re7 {[%emt 0:00:48]} 44. Ne5+ {[%emt 0:00:05] Weighted Error Value: White=0.38/Black=0.58} 1-0

[Event "Menorca Open-A 2022"]
[Site "Menorca"]
[Date "2022.04.21"]
[Round "2.7"]
[White "Barzen, Pascal"]
[Black "Martirosyan, Haik M."]
[Result "0-1"]
[ECO "B33"]
[WhiteElo "2324"]
[BlackElo "2633"]
[Annotator "TA"]
[PlyCount "126"]
[EventDate "2022.04.20"]
[EventType "swiss"]
[EventCountry "ESP"]
[SourceTitle "playchess.com"]
[Source "ChessBase"]
[SourceQuality "1"]
[TimeControl "5400+30"]

{[%evp 18,126,45,10,20,0,18,0,5,4,17,9,32,0,0,6,0,0,0,-33,-20,-29,-19,-20,-21,-17,-18,-51,-49,-49,-43,-49,-33,-17,-21,-29,-16,-62,-59,-68,-59,-100,-91,-98,-93,-91,-104,-100,-100,-92,-99,-89,-82,-94,0,-83,-77,-121,-115,-120,-122,-122,-116,-127,-130,-124,48,-29974,5281,-126,-126,-124,-121,-112,-108,-127,-117,-127,-120,-220,-183,-313,-212,-222,-222,-222,-222,-29972,-29974,-29975,-29976,-29976,-29977,-29977,-29978,-29978,-29979,-29979,-29980,-29980,-29981,-29981,-29982,-29982,-29983,-29983,-29984,-29984,-29985,-29986,-29987]} 1. e4 {[%emt 0:00:04]} c5 {[%emt 0:00:56]} 2. Nf3 {[%emt 0:00:21]} Nc6 {[%emt 0:00:26]} 3. d4 {[%emt 0:00:15]} cxd4 {[%emt 0:00:10]} 4. Nxd4 {[%emt 0:00:06]} Qb6 {[%emt 0:02:28]} 5. Nb3 {[%emt 0:00:57]} Nf6 {[%emt 0:00:09]} 6. Nc3 {[%emt 0:00:24]} e6 {[%emt 0:00:29]} 7. Be3 {[%emt 0:00:59]} Qc7 {[%emt 0:00:20]} 8. a3 {[%emt 0:02:35]} a6 {[%emt 0:01:04]} 9. f4 {[%emt 0:01:27]} d6 {[%emt 0:01:02]} 10. Be2 {[%emt 0:03:38]} Be7 {[%emt 0:02:04] B33: Sicilian: Pelikan and Sveshnikov Variations.} 11. Bf3 {[%emt 0:00:53]} b5 {[%emt 0:01:00]} 12. Qd2 {[%emt 0:06:27]} Bb7 {[%emt 0:01:01] The position is equal.} 13. Qf2 {[%emt 0:00:38]} Nd7 {[%emt 0:02:08]} 14. O-O {[%emt 0:04:34]} O-O {[%emt 0:00:51]} 15. Ne2 {[%emt 0:03:27]} Rac8 {[%emt 0:05:17]} 16. c3 {[%emt 0:03:05]} Na5 {[%emt 0:04:23]} 17. Nxa5 {[%emt 0:00:32]} Qxa5 {[%emt 0:00:07] [#]} 18. e5 $146 {[%emt 0:16:42]} ({Predecessor:} 18. Rad1 Qa4 19. Rd4 Rc4 20. Rxc4 bxc4 21. Ng3 Bc6 22. Rd1 Nf6 23. Rd2 Qb5 24. Qe2 {0-1 (54) Denda,R (1924)-Rosen,W (2207) Grieskirchen 1998}) 18... Bxf3 {[%emt 0:06:17]} 19. exd6 {[%emt 0:01:31]} Bxd6 {[%emt 0:01:11]} 20. Qxf3 {[%emt 0:00:06]} Qc7 {[%emt 0:00:31]} 21. Ng3 {[%emt 0:04:47]} Bc5 {[%emt 0:15:23]} 22. Ne4 {[%emt 0:01:38]} Bxe3+ {[%emt 0:00:16]} 23. Qxe3 {[%emt 0:00:05]} Nb6 {[%emt 0:00:19]} 24. Qf2 {[%emt 0:11:05]} Rfd8 {[%emt 0:04:14]} 25. f5 {[%emt 0:04:50]} exf5 {[%emt 0:01:52]} 26. Qxf5 {[%emt 0:00:06]} Nc4 {[%emt 0:08:07]} 27. Rf2 {[%emt 0:02:21]} (27. Ng5 $11 {is more appropriate.} Qc5+ 28. Qxc5 Rxc5 29. Nxf7) 27... h6 $15 {[%emt 0:03:01]} 28. Re1 {[%emt 0:02:08]} Re8 {[%emt 0:02:43]} 29. Rfe2 {[%emt 0:03:48][%cal Oe4f6] White threatens Nf6+! and mate.} Re5 {[%emt 0:02:58]} 30. Qf2 {[%emt 0:02:36]} Rce8 {[%emt 0:01:26][%cal Oc4b2] Strongly threatening ...Nxb2!} 31. Ng3 {[%emt 0:03:06]} Rxe2 {[%emt 0:05:51]} 32. Rxe2 {[%emt 0:00:05]} Rxe2 {[%emt 0:00:19]} 33. Qxe2 {[%emt 0:00:12]} Qb6+ {[%emt 0:00:21]} 34. Kf1 {[%emt 0:04:23]} Qg6 {[%emt 0:01:44]} 35. Kf2 {[%emt 0:00:19][%cal Oa3a4]} Qb6+ {[%emt 0:04:22]} 36. Kf1 {[%emt 0:00:11]} Kf8 {[%emt 0:01:09]} 37. a4 {[%emt 0:04:17]} (37. Nf5 $2 Qf6 38. Qf2 Qxf5 $3 {[%mdl 512]} 39. Qxf5 Ne3+ 40. Kf2 Nxf5 $19) 37... Ne3+ {[%emt 0:00:56]} 38. Ke1 {[%emt 0:00:06][%cal Oa4a5]} bxa4 {[%emt 0:00:31]} 39. Nf1 {[%emt 0:04:35]} Nd5 {[%emt 0:03:27] &Nero is much more active.} 40. Qe4 {[%emt 0:00:54]} Nf6 {[%emt 0:03:32]} 41. Qxa4 {[%emt 0:00:47]} Qb5 $2 {[%emt 0:16:35]} ({Black should play} 41... Qxb2 $17 42. Qc6 Kg8) 42. b4 $2 {[%mdl 8192]} Qxb4 $4 {[%emt 0:00:00][%mdl 8192]} 43. Qxa6 $2 {[%emt 0:00:56]} (43. cxb4 $18 Ke7 44. Qxa6) 43... Qxc3+ $17 {[%emt 0:00:00]} 44. Ke2 {[%emt 0:01:28]} Qe5+ {[%emt 0:00:00]} 45. Kf3 {[%emt 0:01:52]} Qd5+ {[%emt 0:00:00]} 46. Kf2 {[%emt 0:00:30]} Ne4+ {[%emt 0:00:00]} (46... Qc5+ $2 47. Ne3 $19) 47. Ke3 {[%emt 0:00:52]} f5 {[%emt 0:00:00]} 48. Qa3+ {[%emt 0:02:29]} (48. Qd3 $17 f4+ 49. Ke2) 48... Kg8 {[%emt 0:00:00] Hoping for ...Nf6.} 49. g3 {[%emt 0:00:41]} (49. Ke2 $142) 49... Kh7 {[%emt 0:00:00] Threatens to win with ...Qe5.} ({Don't blunder} 49... Qd1 $2 50. Qd3 Qe1+ 51. Kf4 $19) 50. Ke2 {[%emt 0:02:42]} Qb5+ {[%emt 0:00:00]} 51. Qd3 {[%emt 0:00:41] [#]} Qb2+ {[%emt 0:00:00]} ({Worse is} 51... Nc3+ 52. Ke3) 52. Nd2 $2 {[%emt 0:00:12]} (52. Ke1 $19) 52... Kg6 {[%emt 0:00:00] Black mates.} 53. Ke1 {[%emt 0:00:49]} Qxd2+ {[%emt 0:00:00]} 54. Qxd2 {[%emt 0:00:06]} Nxd2 {[%emt 0:00:00]} 55. Kxd2 {[%emt 0:00:03] K3P-KPP} Kg5 {[%emt 0:00:00]} 56. Ke3 {[%emt 0:00:09]} Kg4 {[%emt 0:00:00]} 57. Kf2 {[%emt 0:00:11]} Kh3 {[%emt 0:00:00]} 58. Kg1 {[%emt 0:00:05]} g5 {[%emt 0:00:00][%cal Bg7g5,Bg5g4][%mdl 32]} 59. Kh1 {[%emt 0:00:05] [#]} h5 $1 {[%emt 0:00:00]} (59... f4 60. gxf4 Kg4 61. fxg5 Kxg5 62. h3 $11) 60. Kg1 {[%emt 0:00:05]} h4 {[%emt 0:00:00]} 61. gxh4 {[%emt 0:00:06]} Kxh4 {[%emt 0:00:00]} ({And not} 61... gxh4 62. Kh1 $11) 62. Kg2 {[%emt 0:00:07]} g4 {[%emt 0:00:21]} 63. Kf2 {[%emt 0:00:09]} Kh3 {[%emt 0:00:12] Weighted Error Value: White=0.42/Black=0.13 (very precise)} 0-1

[Event "Menorca Open-A 2022"]
[Site "Menorca"]
[Date "2022.04.21"]
[Round "2.8"]
[White "Sadhwani, Raunak"]
[Black "Mannion, Stephen R"]
[Result "1-0"]
[ECO "D27"]
[WhiteElo "2616"]
[BlackElo "2281"]
[Annotator "TA"]
[PlyCount "101"]
[EventDate "2022.04.20"]
[EventType "swiss"]
[EventCountry "ESP"]
[SourceTitle "playchess.com"]
[Source "ChessBase"]
[SourceQuality "1"]
[TimeControl "5400+30"]

{[%evp 15,101,22,41,16,23,7,13,20,19,13,17,19,25,19,31,38,37,37,35,35,37,28,33,31,32,32,42,22,22,27,37,29,28,28,43,0,22,23,27,22,37,22,22,-5,33,12,47,22,37,36,84,80,87,82,88,82,118,116,179,194,193,194,204,202,187,202,338,320,331,324,364,368,381,381,381,381,428,427,648,641,1108,1041,1154,1146,29985,29986,29986,6069]} 1. d4 {[%emt 0:00:03]} d5 {[%emt 0:05:25]} 2. Nf3 {[%emt 0:00:10]} Nf6 {[%emt 0:00:06]} 3. c4 {[%emt 0:00:06]} dxc4 {[%emt 0:00:08]} 4. e3 {[%emt 0:00:04]} e6 {[%emt 0:00:16]} 5. Bxc4 {[%emt 0:00:07]} c5 {[%emt 0:00:08]} 6. O-O {[%emt 0:00:09]} a6 {[%emt 0:00:09]} 7. b3 {[%emt 0:00:12]} cxd4 {[%emt 0:00:59]} 8. Nxd4 {[%emt 0:00:16]} Bd6 {[%emt 0:00:26]} 9. Nd2 {[%emt 0:00:09] D27: Queen's Gambit Accepted: Classical main line: 7 e4!? and 7 a4.} O-O {[%emt 0:09:10]} 10. Bb2 {[%emt 0:00:16]} e5 {[%emt 0:02:53]} 11. N4f3 {[%emt 0:00:10] The position is equal.} Nc6 {[%emt 0:00:06]} 12. Be2 {[%emt 0:00:05]} Be6 {[%emt 0:01:34]} 13. Nc4 {[%emt 0:00:30]} Bxc4 {[%emt 0:00:24]} 14. bxc4 {[%emt 0:00:04] [#]} Qc7 $146 {[%emt 0:04:48]} ({Predecessor:} 14... Qe7 15. a3 Rad8 16. Qc2 Nd7 17. Rfd1 Nc5 18. Rab1 e4 19. Nd4 Be5 20. Bc3 Rfe8 21. Nxc6 bxc6 {½-½ (39) Polyakov,D (2330)-Serner,A (2429) ICCF email 2018}) 15. Nd2 {[%emt 0:00:09]} Rad8 {[%emt 0:01:56]} 16. Qc2 {[%emt 0:01:12]} Rfe8 {[%emt 0:05:39]} 17. g3 {[%emt 0:08:55]} Nb8 {[%emt 0:08:43]} 18. Bf3 {[%emt 0:05:22]} Nbd7 {[%emt 0:00:22]} 19. Rfd1 {[%emt 0:03:06]} Nc5 {[%emt 0:10:59]} 20. Rab1 {[%emt 0:00:36]} Rc8 {[%emt 0:12:46]} 21. Ba1 {[%emt 0:01:40]} Bf8 {[%emt 0:05:50]} 22. Bg2 {[%emt 0:01:09]} Rcd8 {[%emt 0:07:34]} 23. Nf3 {[%emt 0:02:49] aiming for Rxd8.} Rxd1+ {[%emt 0:06:06]} 24. Rxd1 {[%emt 0:00:08]} Ncd7 {[%emt 0:05:12]} 25. Qb1 {[%emt 0:05:48]} h6 {[%emt 0:03:19]} 26. Nd2 {[%emt 0:06:26]} Nc5 {[%emt 0:00:22]} 27. Nb3 {[%emt 0:00:13]} b6 {[%emt 0:01:52]} 28. h3 {[%emt 0:02:30]} Ncd7 {[%emt 0:02:26]} 29. Qf5 {[%emt 0:05:13]} g6 {[%emt 0:01:55]} 30. Qc2 {[%emt 0:00:43]} Bg7 {[%emt 0:00:08]} 31. Rc1 {[%emt 0:00:25]} Rc8 {[%emt 0:01:06]} 32. Qe2 {[%emt 0:01:06][%cal Oc4c5]} a5 {[%emt 0:00:12]} (32... Qb8 $14) 33. c5 $1 $16 {[%emt 0:02:38] Black is now going downhill.} Nxc5 {[%emt 0:00:25]} 34. Nxc5 {[%emt 0:00:04]} bxc5 {[%emt 0:00:02]} 35. Qa6 {[%emt 0:00:05][%cal Oa1e5] Threatens to win with Bxe5!} Rb8 {[%emt 0:01:41]} 36. Bc3 {[%emt 0:00:08][%cal Ba1c3,Bc3a5,Ba5c7,Bc7b6,Bb6d4][%mdl 32] &Bianco is more active.} Qb6 {[%emt 0:01:06]} (36... e4 $16) 37. Qxb6 $18 {[%emt 0:01:14]} (37. Qxa5 $6 Qd6 $16) 37... Rxb6 {[%emt 0:00:02]} 38. Bxa5 {[%emt 0:00:01]} (38. Bxe5 $6 Nd7 39. Bc7 Ra6 $16) 38... Rb2 {[%emt 0:01:23]} 39. a4 {[%emt 0:00:03]} ({Don't do} 39. Rxc5 $6 Rxa2 40. Rxe5 Ne4 41. Re8+ (41. Rxe4 Rxa5 42. Re7 Kf8 $16) 41... Kh7 $16) 39... Ra2 {[%emt 0:00:44] [#]} 40. Bc6 {[%emt 0:00:06] A strong pair of Bishops.} ({Resist} 40. Rxc5 Rxa4 41. Rxe5 Ne4 42. Re8+ (42. Rxe4 Rxa5 43. Re7 Kf8 $16) 42... Kh7 $16) 40... Bf8 {[%emt 0:00:44]} (40... Ne4 $142) 41. Bc7 {[%emt 0:01:52]} e4 {[%emt 0:00:38]} 42. a5 {[%emt 0:03:10]} Be7 {[%emt 0:00:01]} 43. Bb7 {[%emt 0:00:14]} Ne8 {[%emt 0:00:16]} 44. Bb6 {[%emt 0:00:07] Strongly threatening a6.} Rb2 {[%emt 0:00:33]} 45. Bxe4 {[%emt 0:00:42]} Nd6 {[%emt 0:00:39]} 46. Bd5 {[%emt 0:00:17]} c4 {[%emt 0:00:25]} (46... Ne8 $142 47. Bc6 Nd6 48. Bxc5 Ra2) 47. Bxc4 {[%emt 0:01:26]} Ne4 {[%emt 0:00:03]} 48. Bd4 {[%emt 0:00:50]} Rd2 {[%emt 0:00:16]} 49. a6 {[%emt 0:00:11][%cal Ba5a6,Ba6a7][%mdl 32] White wants to mate with a7.} Nxf2 {[%emt 0:00:11]} 50. a7 {[%emt 0:00:24]} Nxh3+ {[%emt 0:00:15]} 51. Kf1 {[%emt 0:00:03] Weighted Error Value: White=0.05 (flawless) /Black=0.33} (51. Kh1 $142 Nf2+ 52. Kg2 Ne4+ 53. Kg1 Rxd4 54. exd4 Bf8 55. a8=Q Ng5 {[#]} 56. Bxf7+ $1 {[%mdl 512]} Kxf7 57. Rc7+ Kg8 58. Qd5+ Kh8 59. Kg2) 1-0

[Event "Menorca Open-A 2022"]
[Site "Menorca"]
[Date "2022.04.21"]
[Round "2.9"]
[White "Laux, Dominik"]
[Black "Sethuraman, S.P."]
[Result "0-1"]
[ECO "B30"]
[WhiteElo "2200"]
[BlackElo "2619"]
[Annotator "TA"]
[PlyCount "80"]
[EventDate "2022.04.20"]
[EventType "swiss"]
[EventCountry "ESP"]
[SourceTitle "playchess.com"]
[Source "ChessBase"]
[SourceQuality "1"]
[TimeControl "5400+30"]

{[%evp 11,80,10,29,16,23,15,6,19,22,24,65,57,78,61,81,45,41,22,39,20,22,25,19,20,70,66,85,18,12,5,3,8,7,14,12,12,8,8,10,9,11,0,10,-75,-75,-75,-82,-408,-418,-428,-350,-387,-484,-457,-473,-464,-463,-458,-485,-480,-474,-451,-441,-518,-497,-29977,-29973,-29978,-29978,-29984,-5732]} 1. e4 {[%emt 0:00:45]} c5 {[%emt 0:00:10]} 2. Nf3 {[%emt 0:00:12]} Nc6 {[%emt 0:00:09]} 3. Bb5 {[%emt 0:02:01]} e6 {[%emt 0:00:33]} 4. Bxc6 {[%emt 0:01:20]} bxc6 {[%emt 0:00:06]} 5. d3 {[%emt 0:02:03]} Qc7 {[%emt 0:00:58]} 6. O-O {[%emt 0:02:06]} Ne7 {[%emt 0:02:50] 6...d6 is vanishing.} 7. Re1 {[%emt 0:04:35] B30: Sicilian: 2...Nc6 3 Bb5, lines without ...g6.} Ng6 {[%emt 0:03:38] [#]} 8. h4 $146 {[%emt 0:10:06]} ({Predecessor:} 8. e5 Be7 9. h4 f6 10. Nbd2 O-O 11. exf6 Bxf6 12. Ne4 Bxh4 13. Nxh4 Nxh4 14. Qh5 Nf5 {1-0 (32) Grover,S (2505)-Lupulescu,C (2640) Al Ain 2014}) 8... h5 {[%emt 0:07:19]} 9. e5 {[%emt 0:04:29] The position is equal.} Be7 {[%emt 0:00:30]} 10. g3 {[%emt 0:03:30]} d6 {[%emt 0:09:06][%cal Oc5c4]} 11. Qe2 {[%emt 0:05:24]} f6 {[%emt 0:04:03][%cal Rf6e5]} 12. exd6 {[%emt 0:05:53]} Bxd6 {[%emt 0:00:10]} 13. Qe4 {[%emt 0:09:51]} Ne7 {[%emt 0:02:25]} 14. Na3 {[%emt 0:01:17]} e5 {[%emt 0:00:59]} 15. Nc4 {[%emt 0:02:54]} Bf5 {[%emt 0:00:45]} 16. Nxd6+ {[%emt 0:01:48]} Qxd6 {[%emt 0:00:06]} 17. Qa4 {[%emt 0:00:44]} Kf7 {[%emt 0:20:03]} ({Black should play} 17... Qd5 $11 18. Nd2 (18. Re3 O-O $15) 18... O-O) 18. Be3 $1 $14 {[%emt 0:08:29]} Rhb8 {[%emt 0:03:29]} 19. Qc4+ {[%emt 0:06:43]} (19. Qa3 $16) 19... Be6 $11 {[%emt 0:11:07]} 20. Bxc5 {[%emt 0:03:34]} Qd5 $132 {[%emt 0:00:05][%mdl 2048] Black is not holding back} 21. Qxd5 {[%emt 0:01:13]} Bxd5 {[%emt 0:00:05] [#]} 22. Nd4 {[%emt 0:01:03] With the idea c4.} Rxb2 {[%emt 0:01:05]} 23. c4 {[%emt 0:04:52] Hoping for Bxe7.} Be6 {[%emt 0:00:05]} 24. Nxe6 {[%emt 0:00:43]} Kxe6 {[%emt 0:00:04]} 25. d4 {[%emt 0:00:50] White wants to play dxe5.} Nf5 {[%emt 0:00:51]} 26. dxe5 {[%emt 0:04:04]} fxe5 {[%emt 0:32:49]} 27. f4 {[%emt 0:02:18] [#]} (27. Re4 $11) 27... Rd8 $1 $17 {[%emt 0:00:00] aiming for ...Rdd2.} 28. Rxe5+ {[%emt 0:01:34]} Kf6 {[%emt 0:00:00] ...Rdd2 is the strong threat. &Nero is more active.} 29. Bf2 $2 {[%emt 0:01:47][%mdl 8192] White does not recover from this.} ({Avoid the trap} 29. Bxa7 $2 Rdd2 30. Rxf5+ Kxf5 $19) (29. Rf1 $17) 29... Rdd2 $19 {[%emt 0:00:00][%csl LRa2,LRf2]} 30. Rf1 {[%emt 0:01:07]} Nh6 {[%emt 0:00:00] Strongly threatening ...Ng4.} 31. Re4 {[%emt 0:02:45]} (31. Bxa7 $2 {gets mated.} Rg2+ 32. Kh1 Rh2+ 33. Kg1 Rbg2#) 31... Kf7 {[%emt 0:00:00]} 32. Rd4 {[%emt 0:00:27]} Rdc2 {[%emt 0:00:00] And now ...Ng4 would win.} 33. Rd7+ {[%emt 0:00:17]} Kg8 {[%emt 0:00:00]} 34. Rxa7 {[%emt 0:01:07]} (34. Bd4 $2 Rg2+ 35. Kh1 Rh2+ 36. Kg1 Rbg2#) 34... Ng4 {[%emt 0:00:00][%cal Rg4f2]} 35. Rxg7+ {[%emt 0:00:05]} (35. Bd4 $2 {is a self mate.} Rg2+ 36. Kh1 Rh2+ 37. Kg1 Rbg2#) 35... Kxg7 {[%emt 0:00:00]} 36. Bd4+ {[%emt 0:00:03]} Kg6 {[%emt 0:00:00] ( -> ...Rg2+)} 37. Bxb2 {[%emt 0:00:06]} Rxb2 {[%emt 0:00:00]} 38. Rd1 {[%emt 0:00:35]} (38. f5+ $19 Kf6 39. Rd1) 38... Kf5 {[%emt 0:00:00] Black mates.} 39. Rd6 {[%emt 0:00:21]} Ke4 {[%emt 0:00:00]} 40. Kf1 {[%emt 0:00:09]} Kf3 {[%emt 0:00:00] Weighted Error Value: White=0.45/Black=0.04 (flawless)} (40... Ne3+ $142 41. Kg1 Rg2+ 42. Kh1 Rxa2 43. c5 Re2 44. Kg1 Kf3 45. Rd3 Kxg3 46. Rxe3+ Rxe3 47. Kf1 Kxf4 48. Kf2 Re6 49. Kg2 Ke3 50. Kg3 Rg6+ 51. Kh3 Kf2 52. Kh2 Rg3 53. Kh1 Rh3#) 0-1